fUSD/lending_fUSD_20260127
["ID","MTS","AMOUNT","RATE_DAILY","PERIOD"]
[403812911,1769550644630,-444.0,0.00016959,2]
[403812912,1769550644639,-500.0,0.00016959,2]
[403812913,1769550644648,-940.08,0.00016966,2]
[403812914,1769550644658,-500.0,0.00016986,2]
[403812915,1769550644668,-500.0,0.00017013,2]
[403812916,1769550644678,-150.0,0.00017013,2]
[403812917,1769550644690,-500.0,0.00017013,2]
[403812918,1769550644701,-740.0,0.00017013,2]
[403812919,1769550644711,-500.0,0.00017013,2]
[403812921,1769550644720,-500.0,0.00017013,2]
[403812923,1769550644729,-500.0,0.00017013,2]
[403812925,1769550644739,-417.0,0.00017013,2]
[403812927,1769550644748,-444.0,0.00017013,2]
[403812929,1769550644757,-500.0,0.00017013,2]
[403812931,1769550644766,-500.0,0.00017041,2]
[403812933,1769550644777,-500.0,0.00017068,2]
[403812935,1769550644787,-250.0,0.00017068,2]
[403812937,1769550644796,-500.0,0.00017068,2]
[403812939,1769550644806,-740.0,0.00017068,2]
[403812941,1769550644816,-500.0,0.00017068,2]
[403812943,1769550644825,-500.0,0.00017068,2]
[403812945,1769550644834,-500.0,0.00017068,2]
[403812947,1769550644843,-417.0,0.00017068,2]
[403812949,1769550644853,-444.0,0.00017068,2]
[403812951,1769550644862,-500.0,0.00017068,2]
[403812953,1769550644871,-500.0,0.00017096,2]
[403812955,1769550644881,-500.0,0.00017123,2]
[403812957,1769550644891,-500.0,0.00017123,2]
[403812959,1769550644901,-740.0,0.00017123,2]
[403812961,1769550644912,-500.0,0.00017123,2]
[403812963,1769550644924,-500.0,0.00017123,2]
[403812965,1769550644934,-247.51653588,0.00017123,2]
[403812966,1769550644943,-417.0,0.00017123,2]
[403812967,1769550644954,-444.0,0.00017123,2]
[403812969,1769550644965,-597.32249886,0.00017123,2]
[403812971,1769550644974,-297.22,0.00017135,7]
[403812972,1769550644984,-593.13448031,0.0001715,2]
[403812973,1769550644993,-500.0,0.00017178,2]
[403812974,1769550645005,-500.0,0.00017178,2]
[403812975,1769550645014,-740.0,0.00017178,2]
[403812976,1769550645024,-500.0,0.00017178,2]
[403812977,1769550645034,-500.0,0.00017178,2]
[403812978,1769550645043,-417.0,0.00017178,2]
[403812979,1769550645052,-444.0,0.00017178,2]
[403812980,1769550645062,-500.0,0.00017232,2]
[403812981,1769550645072,-500.0,0.00017232,2]
[403812982,1769550645083,-740.0,0.00017233,2]
[403812983,1769550645092,-563.39557034,0.00017233,2]
[403812984,1769550645103,-301.92574143,0.00017233,2]
[403812985,1769550645113,-417.0,0.00017233,2]
[403812986,1769550645124,-444.0,0.00017233,2]
[403812987,1769550645134,-940.08,0.0001724,2]
[403812988,1769550645143,-500.0,0.00017287,2]
[403812989,1769550645152,-500.0,0.00017287,2]
[403812990,1769550645162,-740.0,0.00017287,2]
[403812991,1769550645171,-417.0,0.00017287,2]
[403812992,1769550645180,-444.0,0.00017287,2]
[403812993,1769550645190,-1264.73042674,0.00017308,2]
[403812994,1769550645199,-500.0,0.00017342,2]
[403812995,1769550645209,-500.0,0.00017342,2]
[403812996,1769550645219,-740.0,0.00017342,2]
[403812997,1769550645228,-417.0,0.00017342,2]
[403812999,1769550645238,-444.0,0.00017342,2]
[403813001,1769550645247,-500.0,0.00017397,2]
[403813003,1769550645256,-363.51122534,0.00017397,2]
[403813004,1769550645265,-740.0,0.00017397,2]
[403813005,1769550645275,-417.0,0.00017397,2]
[403813006,1769550645285,-444.0,0.00017397,2]
[403813007,1769550645294,-500.0,0.00017452,2]
[403813008,1769550645304,-740.0,0.00017452,2]
[403813009,1769550645314,-417.0,0.00017452,2]
[403813010,1769550645324,-444.0,0.00017452,2]
[403813011,1769550645334,-866.0,0.00017459,2]
[403813012,1769550645344,-10000.0,0.000175,6]
[403813013,1769550645354,-482.8923735,0.00017506,2]
[403813014,1769550645363,-740.0,0.00017506,2]
[403813015,1769550645373,-417.0,0.00017506,2]
[403813016,1769550645383,-444.0,0.00017506,2]
[403813017,1769550645393,-940.08,0.00017514,2]
[403813018,1769550645402,-744.84715226,0.00017561,2]
[403813019,1769550645412,-428.69115399,0.00017561,2]
[403813020,1769550645421,-454.7093632,0.00017561,2]
[403813021,1769550645431,-13300.0,0.000176,6]
[403813022,1769550645705,-150.0,0.00017644,2]
[403813023,1769550645716,-150.0,0.00017644,2]
[403813024,1769550645726,-150.0,0.00017699,2]
[403813025,1769550645736,-150.0,0.00017699,2]
[403813026,1769550645746,-500.0,0.00017699,2]
[403813027,1769550645756,-16700.0,0.000177,6]
[403813028,1769550645766,-212.45,0.00017727,2]
[403813029,1769550645777,-152.19420035,0.00017754,2]
[403813030,1769550645787,-150.0,0.00017754,2]
[403813031,1769550645797,-940.08,0.00017788,2]
[403813032,1769550645807,-3300.0,0.000178,6]
[403813033,1769550645820,-3337.64360617,0.00017808,2]
[403813034,1769550645830,-5887.99894481,0.00017808,2]
[403813035,1769550645840,-8808.09428335,0.00017808,2]
[403813036,1769550645850,-11917.6596,0.00017808,2]
[403813037,1769550645861,-150.0,0.00017808,2]
[403813039,1769550645871,-150.0,0.00017863,2]
[403813041,1769550645882,-10000.0,0.000179,2]
[403813043,1769550645892,-1707.21153053,0.000179,2]
[403813045,1769550645901,-3300.0,0.000179,6]
[403813047,1769550645911,-195.58150189,0.000179,3]
[403813049,1769550645922,-575.9921483,0.000179,2]
[403813051,1769550645935,-216.8114186,0.000179,2]
[403813054,1769550645945,-28695.56023326,0.000179,2]
[403813055,1769550645954,-250.0,0.00017918,2]
[403813058,1769550645966,-150.0,0.00017973,2]
[403813060,1769550645975,-150.0,0.00017973,2]
[403813062,1769550645985,-150.00277855,0.00017982,2]
[403813064,1769550645995,-413.81245521,0.0001799,2]
[403813066,1769550646006,-413.81245521,0.0001799,2]
[403813068,1769550646015,-151.0,0.00017997,2]
[403813070,1769550646025,-150.0,0.00017999,2]
[403813072,1769550646034,-150.0,0.00017999,2]
[403813074,1769550646044,-150.0,0.00017999,2]
[403813076,1769550646053,-150.0,0.00017999,2]
[403813078,1769550646062,-157.25260051,0.00017999,2]
[403813080,1769550646072,-300.0,0.00017999,2]
[403813082,1769550646082,-666.0,0.00017999,2]
[403813084,1769550646091,-300.0,0.00017999,2]
[403813086,1769550646101,-300.0,0.00017999,2]
[403813088,1769550646110,-666.0,0.00017999,2]
[403813090,1769550646120,-3597144.80847396,0.00018,2]
[403813092,1769550646129,-39378.70520578,0.00018,2]
[403813094,1769550646139,-5684.7064599,0.00018,2]
[403813096,1769550646148,-713635.20368744,0.00018,2]
[403813127,1769550646660,-387.37693892,0.00018,2]
[403813128,1769550646671,-22556.79999994,0.00018,2]
[403813129,1769550648942,-1.7e-07,0.00018,2]
[403813130,1769550648967,-270.75678484,0.00018,2]
[403813131,1769550649540,6610.11412258,0.00014944,2]
[403813132,1769550649564,5100.37830902,0.00014944,2]
[403813133,1769550649636,-1038.39988,0.00016258,2]
[403813134,1769550649648,-12351.50599733,0.00016258,2]
[403813135,1769550649658,-281969.98198565,0.00018,2]
[403813136,1769550649671,-5100.93599827,0.00018,2]
[403813137,1769550649683,-1155.15310556,0.00018,2]
[403813138,1769550649708,-16512.63184029,0.00018,2]
[403813139,1769550649720,-11455.88315591,0.00018,2]
[403813140,1769550649765,-1948.36829704,0.00018,2]
[403813141,1769550649779,-392.18898825,0.00018,2]
[403813142,1769550649811,-445.90494493,0.00018,2]
[403813143,1769550649920,-71503.0,0.00018,2]
[403813144,1769550649934,-378.87943479,0.00018,2]
[403813145,1769550650003,-1524.8575204,0.00018,2]
[403813146,1769550650021,-10682.61795173,0.00018,2]
[403813147,1769550650032,-18354.34680842,0.00018,2]
[403813148,1769550650044,-275.99999997,0.00018,2]
[403813149,1769550650070,-5021.91098412,0.00018,2]
[403813150,1769550650082,-361.52940421,0.00018,2]
[403813151,1769550650098,-1836.40392102,0.00018,2]
[403813152,1769550650281,500.0,0.00014944,2]
[403813153,1769550655083,4399.63169098,0.00014944,2]
[403813154,1769550655105,10000.01,0.00014944,2]
[403813155,1769550655132,10000.01,0.00014944,2]
[403813156,1769550655154,8836.76020902,0.00014944,2]
[403813159,1769550677617,1163.24979098,0.00014944,2]
[403813160,1769550677643,10000.01,0.00014944,2]
[403813161,1769550677673,10000.01,0.00014944,2]
[403813162,1769550677700,10000.01,0.00014944,2]
[403813163,1769550677727,10000.01,0.00014944,2]
[403813164,1769550677755,10000.01,0.00014944,2]
[403813165,1769550677782,10000.01,0.00014944,2]
[403813166,1769550677811,10000.01,0.00014944,2]
[403813167,1769550677839,10000.01,0.00014944,2]
[403813168,1769550677869,10000.01,0.00014944,2]
[403813169,1769550677915,908836.66020902,0.00014944,2]
[403813176,1769550698453,1000.0,0.00014944,2]
[403813183,1769550730157,403.06914354,0.00014699,2]
[403813186,1769550732199,1734.33554872,0.00014944,2]
[403813187,1769550732243,953.66014294,0.00014944,2]
[403813188,1769550732273,889.22141191,0.00014944,2]
[403813189,1769550732308,926.47041239,0.00014944,2]
[403813212,1769550785147,500.0,0.00014944,2]
[403813226,1769550834069,10000.01,0.00014944,2]
[403813227,1769550834097,10000.01,0.00014944,2]
[403813228,1769550834124,10000.01,0.00014944,2]
[403813229,1769550834151,10000.01,0.00014944,2]
[403813230,1769550834178,10000.01,0.00014944,2]
[403813231,1769550834203,10000.01,0.00014944,2]
[403813232,1769550834227,10000.01,0.00014944,2]
[403813233,1769550834252,10000.01,0.00014944,2]
[403813234,1769550834277,10000.01,0.00014944,2]
[403813235,1769550834301,10000.01,0.00014944,2]
[403813236,1769550834340,248973.12363983,0.00014944,2]
[403813237,1769550835043,-311.97005933,0.00014944,2]
[403813238,1769550837115,-350.34428348,0.00014944,2]
[403813239,1769550839825,-178.70738696,0.00014944,2]
[403813241,1769550841500,-150.0,0.00014943,2]
[403813242,1769550842624,-3293.2533405,0.00014944,2]
[403813243,1769550842727,-10000.01,0.00014944,2]
[403813244,1769550842889,-10000.01,0.00014944,2]
[403813245,1769550843021,-10000.01,0.00014944,2]
[403813246,1769550843139,-10000.01,0.00014944,2]
[403813248,1769550844224,-10000.01,0.00014944,2]
[403813249,1769550844259,-249.65571652,0.00014944,2]
[403813250,1769550844383,-10000.01,0.00014944,2]
[403813251,1769550844837,-10000.01,0.00014944,2]
[403813252,1769550844890,-10000.01,0.00014944,2]
[403813253,1769550844904,-10000.01,0.00014944,2]
[403813254,1769550844918,-10000.01,0.00014944,2]
[403813255,1769550844988,-10000.01,0.00014944,2]
[403813256,1769550845117,-10000.01,0.00014944,2]
[403813257,1769550845234,-10000.01,0.00014944,2]
[403813258,1769550845398,-10000.01,0.00014944,2]
[403813259,1769550845516,-10000.01,0.00014944,2]
[403813260,1769550845628,-10000.01,0.00014944,2]
[403813261,1769550845762,-10000.01,0.00014944,2]
[403813262,1769550845906,-10000.01,0.00014944,2]
[403813263,1769550846025,-10000.01,0.00014944,2]
[403813264,1769550846399,-293.63257727,0.00014944,2]
[403813265,1769550847240,-10000.01,0.00014944,2]
[403813266,1769550847361,-10000.01,0.00014944,2]
[403813267,1769550847486,-10000.01,0.00014944,2]
[403813268,1769550847633,-10000.01,0.00014944,2]
[403813269,1769550847767,-10000.01,0.00014944,2]
[403813270,1769550847894,-10000.01,0.00014944,2]
[403813271,1769550848019,-10000.01,0.00014944,2]
[403813272,1769550848240,-10000.01,0.00014944,2]
[403813273,1769550848340,-10000.01,0.00014944,2]
[403813274,1769550848524,-10000.01,0.00014944,2]
[403813275,1769550848694,-10000.01,0.00014944,2]
[403813276,1769550848783,-10000.01,0.00014944,2]
[403813277,1769550848891,-10000.01,0.00014944,2]
[403813278,1769550848998,-10000.01,0.00014944,2]
[403813279,1769550849117,-10000.01,0.00014944,2]
[403813282,1769550852270,-231.36212261,0.00014944,2]
[403813284,1769550854824,-275.15622563,0.00014944,2]
[403813285,1769550856789,-300.0,0.00014944,2]
[403813286,1769550861060,-203.7947021,0.00014944,2]
[403813287,1769550864159,-155.79911241,0.00014944,2]
[403813288,1769550868797,-356.69752699,0.00014944,2]
[403813293,1769550876898,-170.11123983,0.00014944,2]
[403813294,1769550880352,-235.34687346,0.00014944,2]
[403813296,1769550885808,-599.85158965,0.00014944,2]
[403813297,1769550887410,-160.64614077,0.00014944,2]
[403813298,1769550893899,-359.22477413,0.00014944,2]
[403813299,1769550894946,-683.40766045,0.00014944,2]
[403813300,1769550900502,-155.45188026,0.00014944,2]
[403813302,1769550904510,-172.45914995,0.00014943,2]
[403813304,1769550909872,-127.54085005,0.00014943,2]
[403813305,1769550909894,-39.11914995,0.00014943,2]
[403813308,1769550917699,-209.78581975,0.00014868,2]
[403813309,1769550920190,-3153.27416225,0.00014868,2]
[403813310,1769550920218,-260.88085005,0.00014943,2]
[403813311,1769550920249,-1200.0,0.00014943,2]
[403813313,1769550920278,-300.0,0.00014943,2]
[403813314,1769550920376,-171.6999754,0.00014944,2]
[403813315,1769550920406,-78.3000246,0.00014944,2]
[403813316,1769550920429,-300.0,0.00014944,2]
[403813317,1769550920459,-0.52286842,0.00014944,2]
[403813318,1769550920491,-10000.01,0.00014944,2]
[403813319,1769550920543,-10000.01,0.00014944,2]
[403813320,1769550920724,-10000.01,0.00014944,2]
[403813321,1769550920849,-10000.01,0.00014944,2]
[403813322,1769550920970,-10000.01,0.00014944,2]
[403813323,1769550921076,-10000.01,0.00014944,2]
[403813324,1769550921175,-10000.01,0.00014944,2]
[403813325,1769550922449,-10000.01,0.00014944,2]
[403813329,1769550925855,-211.592463,0.00014944,2]
[403813330,1769550928314,-598.44067624,0.00014944,2]
[403813331,1769550933185,-222.53705238,0.00014944,2]
[403813332,1769550942228,-417.52396284,0.00014699,2]
[403813333,1769550942259,-180.12388769,0.00014944,2]
[403813337,1769550949369,-238.62240097,0.00014944,2]
[403813338,1769550951477,-365.5684075,0.00014944,2]
[403813340,1769550958177,-366.65727684,0.00014944,2]
[403813342,1769550959382,-273.73124104,0.00014944,2]
[403813345,1769550969293,-195.95590701,0.00014943,2]
[403813346,1769550973849,-104.04409299,0.00014943,2]
[403813347,1769550973883,-285.31379644,0.00014944,2]
[403813349,1769550981654,-214.6986848,0.00014943,2]
[403813351,1769550983139,-85.3013152,0.00014943,2]
[403813352,1769550983171,-535.26678551,0.00014944,2]
[403813355,1769550989671,-300.0,0.00014944,2]
[403813358,1769550999844,-184.41117946,0.00014944,2]
[403813361,1769551006544,-242.55374336,0.00014944,2]
[403813362,1769551008249,-269.89230054,0.00014944,2]
[403813366,1769551015645,-300.57827864,0.00014944,2]
[403813368,1769551021146,-180.84504759,0.00014944,2]
[403813370,1769551024421,-300.0,0.00014943,2]
[403813371,1769551024444,-36.5894704,0.00014943,2]
[403813373,1769551030440,-113.4105296,0.00014943,2]
[403813374,1769551030462,-115.13935304,0.00014943,2]
[403813375,1769551037561,-184.86064696,0.00014943,2]
[403813376,1769551037582,-11.58221962,0.00014943,2]
[403813378,1769551039624,-247.27605145,0.00014943,2]
[403813381,1769551047106,-41.14172893,0.00014943,2]
[403813382,1769551047138,-185.48195899,0.00014944,2]
[403813384,1769551053731,-214.79177468,0.00014944,2]
[403813385,1769551056591,-461.86367606,0.00014944,2]
[403813387,1769551062805,-188.41388948,0.00014944,2]
[403813389,1769551069319,-275.48990071,0.00014944,2]
[403813390,1769551072347,-253.89176773,0.00014944,2]
[403813392,1769551078659,-300.0,0.00014944,2]
[403813394,1769551085039,-253.16067858,0.00014944,2]
[403813395,1769551089317,-300.0,0.00014944,2]
[403813397,1769551093585,-250.0,0.00014944,2]
[403813398,1769551095073,-261.92123502,0.00014944,2]
[403813402,1769551101165,-191.28010461,0.00014944,2]
[403813403,1769551103696,-456.1477153,0.00014943,2]
[403813405,1769551109303,-164.736033,0.00014943,2]
[403813406,1769551114822,10000.01,0.00014844,2]
[403813407,1769551114844,3965.83853366,0.00014844,2]
[403813409,1769551119581,-230.81844795,0.00014943,2]
[403813411,1769551125007,-301.39262182,0.00014943,2]
[403813414,1769551127715,-46.90518193,0.00014943,2]
[403813415,1769551127749,-159.78453149,0.00014944,2]
[403813416,1769551135682,-160.94304221,0.00014944,2]
[403813417,1769551141459,-264.04625303,0.00014943,2]
[403813418,1769551144190,-35.95374697,0.00014943,2]
[403813419,1769551144219,-239.72702717,0.00014944,2]
[403813420,1769551150649,-332.11778357,0.00014944,2]
[403813421,1769551150784,2144.66958319,0.00014844,2]
[403813422,1769551152222,-255.89444235,0.00014944,2]
[403813423,1769551158974,-270.0,0.00014943,2]
[403813424,1769551164674,-30.0,0.00014943,2]
[403813425,1769551164704,-194.90545266,0.00014944,2]
[403813426,1769551166888,-336.55035311,0.00014944,2]
[403813427,1769551172192,-250.0,0.00014944,2]
[403813429,1769551175030,-279.16663666,0.00014944,2]
[403813430,1769551181011,-211.19647201,0.00014944,2]
[403813431,1769551182441,185.344063,0.00014869,2]
[403813432,1769551184964,-300.0,0.00014944,2]
[403813433,1769551188571,-172.40537801,0.00014944,2]
[403813434,1769551190768,-254.36856334,0.00014944,2]
[403813435,1769551192900,-190.82611949,0.00014944,2]
[403813436,1769551198610,-179.954532,0.00014944,2]
[403813438,1769551207110,-276.67903427,0.00014943,2]
[403813439,1769551210315,166.25,0.00014804,2]
[403813440,1769551213243,-23.32096573,0.00014943,2]
[403813441,1769551213266,-285.43177332,0.00014943,2]
[403813442,1769551214767,-14.56822668,0.00014943,2]
[403813443,1769551214791,-191.42386574,0.00014943,2]
[403813444,1769551218634,247.18,0.00014745,2]
[403813445,1769551220547,-263.99532567,0.00014943,2]
[403813448,1769551222630,-195.0,0.00014943,2]
[403813449,1769551224860,150.11107265,0.00014443,2]
[403813450,1769551230304,-191.4647803,0.00014943,2]
[403813451,1769551232578,-217.50417788,0.00014943,2]
[403813453,1769551238422,-140.61185041,0.00014943,2]
[403813454,1769551238444,-17.61139685,0.00014943,2]
[403813455,1769551244514,-225.38860315,0.00014943,2]
[403813456,1769551244537,-61.28445875,0.00014943,2]
[403813457,1769551246095,-88.71554125,0.00014943,2]
[403813458,1769551246118,-72.84050502,0.00014943,2]
[403813459,1769551248215,-78.34463606,0.00014943,2]
[403813460,1769551248238,-116.14163808,0.00014943,2]
[403813461,1769551255104,-201.75275641,0.00014943,2]
[403813462,1769551255126,-88.9290975,0.00014943,2]
[403813465,1769551261377,-297.3888752,0.00014943,2]
[403813466,1769551263091,-118.97360092,0.00014943,2]
[403813467,1769551263115,-64.97639908,0.00014943,2]
[403813469,1769551269928,-167.44743681,0.00014943,2]
[403813470,1769551272081,-173.57338941,0.00014943,2]
[403813471,1769551276705,-94.0027747,0.00014943,2]
[403813472,1769551276730,-131.66716534,0.00014943,2]
[403813473,1769551280155,-222.66848863,0.00014943,2]
[403813474,1769551284920,-284.81411226,0.00014943,2]
[403813478,1769551292622,-8.68977388,0.00014943,2]
[403813479,1769551292643,-165.64963807,0.00014943,2]
[403813480,1769551294179,-334.35036193,0.00014943,2]
[403813481,1769551294200,-32.47195367,0.00014943,2]
[403813482,1769551298053,-282.81899234,0.00014943,2]
[403813484,1769551300855,-184.70905399,0.00014943,2]
[403813485,1769551300877,-260.40148874,0.00014943,2]
[403813486,1769551302326,-239.59851126,0.00014943,2]
[403813487,1769551302348,-92.8968545,0.00014943,2]
[403813489,1769551304244,-181.5066131,0.00014943,2]
[403813490,1769551304288,2500.0,0.00014844,2]
[403813491,1769551309836,-216.23909349,0.00014943,2]
[403813492,1769551311458,-340.17578903,0.00014943,2]
[403813493,1769551316616,-159.82421097,0.00014943,2]
[403813494,1769551316638,-9.35743891,0.00014943,2]
[403813495,1769551316660,-300.66327416,0.00014943,2]
[403813496,1769551318797,-199.33672584,0.00014943,2]
[403813497,1769551318820,-500.0,0.00014943,2]
[403813498,1769551318841,-134.70275061,0.00014943,2]
[403813499,1769551320843,-330.14659575,0.00014943,2]
[403813500,1769551324392,-230.16055486,0.00014942,2]
[403813502,1769551326405,-200.0,0.00014935,2]
[403813503,1769551326427,-44.33214218,0.00014935,2]
[403813504,1769551332545,-106.66785782,0.00014935,2]
[403813505,1769551332566,-151.0,0.00014935,2]
[403813506,1769551332588,-7.16628977,0.00014935,2]
[403813507,1769551334201,-143.83371023,0.00014935,2]
[403813508,1769551334226,-96.66490377,0.00014935,2]
[403813511,1769551340675,-155.11573673,0.00014934,2]
[403813512,1769551343390,-144.88426327,0.00014934,2]
[403813513,1769551343413,-54.33509623,0.00014935,2]
[403813514,1769551343436,-43.49865473,0.00014935,2]
[403813516,1769551348706,-107.50134527,0.00014935,2]
[403813517,1769551348727,-420.98183509,0.00014935,2]
[403813518,1769551350397,-79.01816491,0.00014935,2]
[403813519,1769551350420,-151.0,0.00014935,2]
[403813520,1769551350699,-38.24661298,0.00014935,2]
[403813522,1769551356451,-112.75338702,0.00014935,2]
[403813523,1769551356479,-151.0,0.00014935,2]
[403813524,1769551356503,-140.8581979,0.00014935,2]
[403813526,1769551359643,-10.1418021,0.00014935,2]
[403813527,1769551359664,-200.0,0.00014935,2]
[403813528,1769551359689,-53.89129679,0.00014935,2]
[403813529,1769551364228,-97.10870321,0.00014935,2]
[403813530,1769551364251,-151.0,0.00014935,2]
[403813531,1769551364274,-1.46368631,0.00014935,2]
[403813532,1769551365764,-149.53631369,0.00014935,2]
[403813533,1769551365786,-147.69902352,0.00014935,2]
[403813534,1769551367373,-3.30097648,0.00014935,2]
[403813535,1769551367398,-460.53870713,0.00014935,2]
[403813538,1769551372968,155.59,0.00014719,2]
[403813539,1769551373921,-39.46129287,0.00014935,2]
[403813540,1769551373946,-185.17769909,0.00014935,2]
[403813541,1769551375009,5550.1231,0.00014844,2]
[403813542,1769551375576,-314.82230091,0.00014935,2]
[403813543,1769551375598,-151.0,0.00014935,2]
[403813544,1769551375621,-128.17991227,0.00014935,2]
[403813546,1769551380627,-175.972188,0.00014935,2]
[403813547,1769551380649,-81.95461265,0.00014935,2]
[403813548,1769551382297,-150.0,0.00014934,2]
[403813549,1769551382320,-117.61962145,0.00014934,2]
[403813550,1769551383810,-172.57919892,0.00014934,2]
[403813552,1769551389169,-9.80117963,0.00014934,2]
[403813553,1769551389536,-161.864516,0.00014935,2]
[403813554,1769551390755,-40.49432145,0.00014935,2]
[403813555,1769551390778,-254.43502153,0.00014935,2]
[403813556,1769551396393,-35.43045355,0.00014935,2]
[403813557,1769551396419,-151.0,0.00014935,2]
[403813558,1769551396442,-117.51777666,0.00014935,2]
[403813559,1769551398585,-360.35015867,0.00014935,2]
[403813560,1769551404845,-215.40245186,0.00014934,2]
[403813562,1769551406495,-260.94893944,0.00014934,2]
[403813564,1769551412839,-416.00975051,0.00014934,2]
[403813565,1769551415267,-159.27633665,0.00014934,2]
[403813566,1769551422050,-148.36252154,0.00014934,2]
[403813567,1769551422073,-22.13206467,0.00014935,2]
[403813568,1769551422095,-52.54695023,0.00014935,2]
[403813569,1769551423552,-190.80711694,0.00014935,2]
[403813571,1769551428557,4294.2969,0.00014844,2]
[403813572,1769551428585,6273.52947135,0.00014844,2]
[403813573,1769551429311,-256.45827984,0.00014935,2]
[403813574,1769551430978,-0.18765299,0.00014935,2]
[403813575,1769551431002,-151.0,0.00014935,2]
[403813576,1769551431024,-40.80117641,0.00014935,2]
[403813578,1769551438107,-110.19882359,0.00014935,2]
[403813579,1769551438129,-72.3943553,0.00014935,2]
[403813580,1769551440213,-78.6056447,0.00014935,2]
[403813581,1769551440238,-149.42810233,0.00014935,2]
[403813582,1769551445352,-325.39243718,0.00014935,2]
[403813583,1769551448066,-25.17946049,0.00014935,2]
[403813584,1769551448090,-151.0,0.00014935,2]
[403813585,1769551448123,-128.32600746,0.00014935,2]
[403813586,1769551448497,3333.0862,0.00014844,2]
[403813587,1769551453230,-252.143357,0.00014935,2]
[403813588,1769551455900,-119.53063554,0.00014935,2]
[403813589,1769551455929,-151.0,0.00014935,2]
[403813590,1769551455958,-317.83566119,0.00014935,2]
[403813591,1769551460728,393.39432865,0.00014844,2]
[403813592,1769551460753,2106.60567135,0.00014844,2]
[403813593,1769551460786,-182.16433881,0.00014935,2]
[403813594,1769551460811,-67.83566119,0.00014935,2]
[403813595,1769551464491,-83.16433881,0.00014935,2]
[403813596,1769551464538,-107.4282579,0.00014935,2]
[403813597,1769551468726,-298.92588499,0.00014935,2]
[403813598,1769551471437,-93.64585711,0.00014935,2]
[403813599,1769551471459,-92.25864173,0.00014935,2]
[403813600,1769551476796,-58.74135827,0.00014935,2]
[403813601,1769551476818,-191.25864173,0.00014935,2]
[403813602,1769551478251,-308.74135827,0.00014935,2]
[403813603,1769551478274,-111.25948984,0.00014935,2]
[403813604,1769551484601,-39.74051016,0.00014935,2]
[403813605,1769551484626,-214.36326107,0.00014935,2]
[403813606,1769551486619,-186.50714828,0.00014935,2]
[403813607,1769551487888,-99.12959065,0.00014935,2]
[403813608,1769551487911,-151.0,0.00014935,2]
[403813609,1769551487935,-151.0,0.00014935,2]
[403813610,1769551487960,-151.0,0.00014935,2]
[403813611,1769551487983,-151.0,0.00014935,2]
[403813612,1769551488006,-77.42054557,0.00014935,2]
[403813614,1769551493580,-73.57945443,0.00014935,2]
[403813615,1769551493609,-151.0,0.00014935,2]
[403813616,1769551493633,-151.0,0.00014935,2]
[403813617,1769551494083,-121.07167197,0.00014935,2]
[403813618,1769551495479,-29.92832803,0.00014935,2]
[403813619,1769551495502,-237.55253529,0.00014935,2]
[403813620,1769551497735,150.0,0.00014603,2]
[403813621,1769551501153,-253.84302795,0.00014935,2]
[403813622,1769551501986,-300.0,0.00014934,2]
[403813623,1769551502015,-253.0,0.00014934,2]
[403813624,1769551502045,-1200.0,0.00014934,2]
[403813625,1769551502073,-8.60443676,0.00014935,2]
[403813626,1769551502103,-500.0,0.00014935,2]
[403813627,1769551502133,-500.0,0.00014935,2]
[403813628,1769551502163,-500.0,0.00014935,2]
[403813629,1769551502190,-500.0,0.00014935,2]
[403813630,1769551502219,-500.0,0.00014935,2]
[403813631,1769551502247,-500.0,0.00014935,2]
[403813632,1769551502517,-500.0,0.00014935,2]
[403813633,1769551502546,-500.0,0.00014935,2]